bitfinex/quotes_SOLUSD_20260228
["timestamp","ask_amount","ask_price","bid_price","bid_amount"]
[1772277375545,3.59631395,79.343,79.319,3.57671733]
[1772277377353,3.59631395,79.339,79.311,61.5]
[1772277377526,3.59631395,79.339,79.303,3.57671733]
[1772277377527,3.59631395,79.317,79.292,3.57671733]
[1772277378026,3.59631395,79.317,79.294,3.57671733]
[1772277378547,3.59631395,79.322,79.294,3.57671733]
[1772277379565,3.59631395,79.319,79.284,11.31495851]
[1772277379773,3.59631395,79.319,79.285,12.61272624]
[1772277381451,3.59631395,79.319,79.291,3.57671733]
[1772277381927,3.59631395,79.317,79.293,3.57671733]
[1772277383255,3.59631395,79.315,79.293,3.57671733]
[1772277383434,3.59631395,79.315,79.284,11.31495851]
[1772277383641,3.59631395,79.309,79.284,11.31495851]
[1772277384533,3.59631395,79.309,79.284,14.89167584]
[1772277386545,3.59631395,79.307,79.284,14.89167584]
[1772277387934,3.59631395,79.307,79.285,3.57671733]
[1772277388664,3.59631395,79.329,79.301,3.57671733]
[1772277389147,3.59631395,79.319,79.285,12.61272624]
[1772277389329,3.59631395,79.319,79.286,3.57671733]
[1772277391549,3.59631395,79.317,79.291,3.57671733]
[1772277392648,3.59631395,79.317,79.293,3.57671733]
[1772277395845,3.59631395,79.315,79.293,3.57671733]
[1772277396045,12.60779666,79.316,79.287,3.57671733]
[1772277396046,3.59631395,79.309,79.287,3.57671733]
[1772277398648,3.59631395,79.307,79.287,3.57671733]
[1772277401062,3.60709051,79.305,79.284,79.74553171]
[1772277402954,3.60709051,79.305,79.284,83.23706449]
[1772277403758,3.60709051,79.305,79.284,79.74553171]
[1772277403949,3.60709051,79.305,79.286,3.49153278]
[1772277404757,3.63672931,79.303,79.286,3.49153278]
[1772277404960,3.63672931,79.303,79.284,79.74553171]
[1772277405551,3.63672931,79.303,79.284,83.23706449]
[1772277405949,3.63672931,79.303,79.285,3.49153278]
[1772277406171,3.63672931,79.302,79.284,79.74553171]
[1772277406959,3.63672931,79.302,79.284,83.23706449]
[1772277407465,3.63672931,79.302,79.285,3.49153278]
[1772277407842,3.63672931,79.289,79.28,1e-08]
[1772277408047,3.63672931,79.289,79.27,0.2]
[1772277410248,6.34512051,79.29,79.27,0.2]
[1772277410249,3.63672931,79.287,79.27,0.2]
[1772277410561,3.63672931,79.287,79.26,0.2]
[1772277411351,3.63672931,79.285,79.26,0.2]
[1772277412168,6.34512051,79.28,79.26,0.2]
[1772277412372,3.63672931,79.279,79.26,0.2]
[1772277413576,3.63672931,79.269,79.25,0.2]
[1772277413756,3.63672931,79.277,79.252,3.49153278]
[1772277415854,3.63672931,79.277,79.254,3.49153278]
[1772277416371,3.63672931,79.275,79.254,3.49153278]
[1772277417552,3.63672931,79.273,79.254,3.49153278]
[1772277418977,3.63672931,79.273,79.255,3.49153278]
[1772277419196,3.63672931,79.292,79.261,3.49153278]
[1772277419363,3.63672931,79.302,79.271,3.49153278]
[1772277419561,3.63672931,79.302,79.273,3.49153278]
[1772277419775,3.63672931,79.301,79.273,3.49153278]
[1772277420575,3.63672931,79.299,79.273,3.49153278]
[1772277420775,3.63672931,79.279,79.24,0.2]
[1772277421056,6.36049857,79.26,79.24,3.69153278]
[1772277421363,3.63672931,79.259,79.24,0.2]
[1772277421674,12.61845575,79.249,79.233,3.49153278]
[1772277421878,3.63672931,79.277,79.241,3.49153278]
[1772277422078,3.63672931,79.269,79.231,3.49153278]
[1772277422275,3.63672931,79.259,79.232,3.49153278]
[1772277423769,16.25375219,79.258,79.232,3.49153278]
[1772277424273,3.63672931,79.257,79.234,3.49153278]
[1772277424477,3.63672931,79.269,79.234,3.49153278]
[1772277424791,6.36049857,79.27,79.234,3.49153278]
[1772277424792,3.63672931,79.265,79.234,3.49153278]
[1772277424956,12.61580861,79.266,79.23,6.56049857]
[1772277424957,3.63672931,79.249,79.23,0.2]
[1772277425564,6.36049857,79.25,79.23,0.2]
[1772277425565,3.63672931,79.259,79.232,3.49153278]
[1772277425869,3.63672931,79.259,79.234,3.49153278]
[1772277427089,12.61702288,79.258,79.23,0.2]
[1772277427263,3.63672931,79.257,79.23,3.69153278]
[1772277427463,3.63672931,79.257,79.231,3.49153278]
[1772277429293,3.63672931,79.255,79.233,3.49153278]
[1772277431287,6.36049857,79.25,79.23,0.2]
[1772277431463,3.4991674,79.249,79.23,3.86388525]
[1772277432080,44.16180886,79.254,79.23,3.86388525]
[1772277432259,3.4991674,79.253,79.23,3.86388525]
[1772277433185,44.16180886,79.254,79.22,0.2]
[1772277433186,3.4991674,79.249,79.22,0.2]
[1772277433381,3.4991674,79.247,79.22,0.2]
[1772277434195,3.4991674,79.239,79.22,0.2]
[1772277435076,3.4991674,79.239,79.221,3.66388525]
[1772277435275,3.4991674,79.239,79.22,0.2]
[1772277435276,3.4991674,79.267,79.233,3.66388525]
[1772277435475,12.6157495,79.266,79.233,3.66388525]
[1772277435675,3.4991674,79.265,79.233,3.66388525]
[1772277436297,6.36049857,79.26,79.233,3.66388525]
[1772277436591,3.4991674,79.259,79.233,3.66388525]
[1772277437495,3.4991674,79.257,79.233,3.66388525]
[1772277439096,3.4991674,79.255,79.233,3.66388525]
[1772277441806,3.4991674,79.255,79.222,61.5]
[1772277441807,3.4991674,79.253,79.228,3.66388525]
[1772277442098,3.4991674,79.249,79.228,3.66388525]
[1772277443586,3.4991674,79.249,79.227,3.66388525]
[1772277444380,3.4991674,79.247,79.227,3.66388525]
[1772277445310,3.4991674,79.247,79.223,12.62259697]
[1772277445605,3.4991674,79.247,79.224,3.66388525]
[1772277446599,3.4991674,79.245,79.224,3.66388525]
[1772277448796,3.4991674,79.245,79.221,3.66388525]
[1772277448992,3.4991674,79.239,79.211,3.66388525]
[1772277449184,3.69383402,79.274,79.21,12.824627]
[1772277449185,3.4991674,79.259,79.221,3.66388525]
[1772277449384,3.4991674,79.258,79.221,3.66388525]
[1772277450982,63.0674087,79.281,79.21,44.3862985]
[1772277450983,12.61527204,79.269,79.241,3.66388525]
[1772277451600,3.4991674,79.259,79.241,3.66388525]
[1772277451802,3.4991674,79.259,79.234,3.66388525]
[1772277454908,16.11619028,79.258,79.234,3.66388525]
[1772277455105,3.4991674,79.257,79.234,3.66388525]
[1772277455887,12.61734127,79.256,79.234,3.66388525]
[1772277456610,3.4991674,79.255,79.221,3.66388525]
[1772277457503,3.4991674,79.255,79.223,3.66388525]
[1772277457696,3.4991674,79.255,79.231,3.66388525]
[1772277458084,12.61734127,79.256,79.233,3.66388525]
[1772277458886,3.4991674,79.261,79.233,3.66388525]
[1772277459288,6.36049857,79.26,79.233,3.66388525]
[1772277459490,3.4991674,79.259,79.233,3.66388525]
[1772277460390,3.4991674,79.259,79.235,3.5256307]
[1772277462618,3.64749117,79.264,79.237,3.64456075]
[1772277465392,3.64749117,79.262,79.237,3.64456075]
[1772277465816,12.61622699,79.263,79.239,3.64456075]
[1772277466514,12.6138399,79.278,79.241,3.64456075]
[1772277467308,16.26133107,79.278,79.242,12.61957042]
[1772277467614,16.26133107,79.278,79.243,3.64456075]
[1772277467914,3.64749117,79.277,79.243,3.64456075]
[1772277468620,16.2616493,79.276,79.245,3.64456075]
[1772277468914,3.64749117,79.275,79.245,3.64456075]
[1772277469314,3.64749117,79.259,79.242,61.5]
[1772277469499,10.00798974,79.27,79.244,3.64456075]
[1772277469693,3.64749117,79.27,79.244,3.64456075]
[1772277470600,12.61527204,79.269,79.244,3.64456075]
[1772277471597,16.26276321,79.269,79.244,3.64456075]
[1772277472806,3.64749117,79.269,79.246,3.64456075]
[1772277473007,3.64749117,79.267,79.246,3.64456075]
[1772277473223,12.61543119,79.268,79.231,3.64456075]
[1772277473421,3.64749117,79.27,79.241,3.64456075]
[1772277473739,3.64749117,79.268,79.241,3.64456075]
[1772277474908,3.64749117,79.266,79.241,3.64456075]
[1772277475716,3.64749117,79.259,79.236,3.64456075]
[1772277478918,3.64749117,79.257,79.236,3.64456075]
[1772277479623,12.61702288,79.258,79.229,3.64456075]
[1772277479624,3.64749117,79.249,79.229,3.64456075]
[1772277480226,3.64749117,79.249,79.211,3.64456075]
[1772277480411,3.64749117,79.239,79.211,3.64456075]
[1772277480814,3.64749117,79.237,79.211,3.64456075]
[1772277483827,12.62052602,79.236,79.211,3.64456075]
[1772277484023,3.64749117,79.235,79.211,3.64456075]
[1772277484722,7.4,79.23,79.211,3.64456075]
[1772277486132,3.64749117,79.228,79.211,3.64456075]
[1772277487209,12.62164106,79.229,79.211,3.64456075]
[1772277487832,3.64749117,79.228,79.211,3.64456075]
[1772277488902,12.62195968,79.227,79.211,3.64456075]
[1772277493943,6.36319189,79.22,79.201,3.31185986]
[1772277494234,3.46902876,79.225,79.201,3.31185986]
[1772277495718,3.46902876,79.219,79.2,0.2]
[1772277497531,12.62243764,79.224,79.2,3.51185986]
[1772277497825,7.4,79.23,79.203,3.31185986]
[1772277498126,12.61947778,79.243,79.211,3.31185986]
[1772277498318,102.3,79.313,79.202,44.19080325]
[1772277498319,3.46902876,79.262,79.232,3.31185986]
[1772277498519,3.46902876,79.262,79.24,6.36319189]
[1772277498726,3.46902876,79.278,79.241,3.31185986]
[1772277499733,12.61399901,79.277,79.242,12.61957042]
[1772277500025,3.46902876,79.276,79.243,3.31185986]
[1772277501014,3.46902876,79.276,79.251,3.31185986]
[1772277502319,3.46902876,79.294,79.261,3.31185986]
[1772277502531,31.52811875,79.295,79.261,3.31185986]
[1772277502532,3.46902876,79.289,79.261,3.31185986]
[1772277503021,3.46902876,79.289,79.263,3.31185986]
[1772277503636,3.46902876,79.287,79.263,3.31185986]
[1772277503851,3.46902876,79.287,79.251,3.31185986]
[1772277504540,3.46902876,79.287,79.252,3.31185986]
[1772277505038,3.46902876,79.267,79.23,6.36319189]
[1772277505243,3.46902876,79.267,79.231,3.31185986]
[1772277505441,3.46902876,79.267,79.241,3.31185986]
[1772277506645,6.36319189,79.27,79.241,3.31185986]
[1772277506646,3.46902876,79.265,79.241,3.31185986]
[1772277508453,3.46902876,79.265,79.235,12.62067412]
[1772277508752,3.46902876,79.269,79.241,3.31185986]
[1772277510550,3.46902876,79.269,79.243,3.31185986]
[1772277512650,3.46902876,79.269,79.245,3.31185986]
[1772277513751,3.46902876,79.269,79.247,3.31185986]
[1772277515153,3.46902876,79.269,79.246,12.61893344]
[1772277515154,3.46902876,79.267,79.237,3.31185986]
[1772277515542,3.46902876,79.259,79.235,12.62058502]
[1772277515741,3.46902876,79.257,79.231,3.31185986]
[1772277516134,3.46902876,79.257,79.232,12.62116316]
[1772277516330,3.46902876,79.257,79.233,3.31185986]
[1772277516534,6.36319189,79.27,79.233,3.31185986]
[1772277516739,12.61368079,79.279,79.241,3.31185986]
[1772277518251,12.61296772,79.284,79.251,3.31185986]
[1772277518467,3.46902876,79.283,79.251,3.31185986]
[1772277519356,3.46902876,79.283,79.214,3.69383402]
[1772277519357,3.46902876,79.283,79.261,3.31185986]
[1772277519649,16.08120428,79.289,79.261,3.31185986]
[1772277519853,6.36319189,79.3,79.261,3.31185986]
[1772277520051,3.46902876,79.3,79.271,3.31185986]
[1772277520440,3.46902876,79.299,79.271,3.31185986]
[1772277521335,3.46902876,79.299,79.273,3.35497009]
[1772277521738,12.60938642,79.306,79.273,3.35497009]
[1772277521956,3.43948687,79.305,79.273,3.35497009]
[1772277523368,3.30728209,79.287,79.257,16.00275353]
[1772277523854,3.30728209,79.287,79.258,3.38568164]
[1772277525565,3.30728209,79.285,79.258,3.38568164]
[1772277526665,3.30728209,79.285,79.259,12.6168637]
[1772277527262,3.30728209,79.279,79.241,3.38568164]
[1772277527556,3.30728209,79.267,79.241,16.00529389]
[1772277527756,3.30728209,79.267,79.242,3.38568164]
[1772277528967,3.30728209,79.267,79.244,3.38568164]
[1772277530649,3.30728209,79.277,79.244,3.38568164]
[1772277531566,3.30728209,79.277,79.246,3.38568164]
[1772277531748,3.30728209,79.275,79.246,3.38568164]
[1772277533790,3.30728209,79.275,79.248,3.38568164]
[1772277535264,3.30728209,79.275,79.249,12.61845575]
[1772277535463,3.30728209,79.275,79.249,16.00413739]
[1772277536164,12.61447637,79.274,79.249,16.00413739]
[1772277536347,3.30728209,79.273,79.249,16.00413739]
[1772277538962,3.30728209,79.273,79.25,3.38568164]
[1772277539166,3.30728209,79.278,79.251,3.38568164]
[1772277539754,3.30728209,79.278,79.253,3.38568164]
[1772277540667,3.30728209,79.276,79.248,12.61854828]
[1772277541772,3.30728209,79.274,79.248,12.61854828]
[1772277542648,3.30728209,79.274,79.249,64.88568164]
[1772277544854,3.30728209,79.272,79.25,16.00397816]
[1772277545253,3.30728209,79.278,79.251,3.38568164]
[1772277545665,3.30728209,79.278,79.252,3.38568164]
[1772277546466,3.30728209,79.278,79.253,12.61781888]
[1772277546665,3.30728209,79.278,79.254,3.38568164]
[1772277548665,3.30728209,79.278,79.256,3.38568164]
[1772277551071,12.61399901,79.277,79.256,3.38568164]
[1772277551277,3.59123402,79.276,79.256,3.38568164]
[1772277552469,3.59123402,79.274,79.249,3.30372389]
[1772277553574,3.59123402,79.281,79.249,3.30372389]
[1772277553796,3.59123402,79.288,79.251,3.30372389]
[1772277553964,63.0375052,79.318,79.243,44.16793911]
[1772277553965,3.59123402,79.294,79.261,3.30372389]
[1772277554167,3.59123402,79.304,79.271,3.30372389]
[1772277554374,12.60986343,79.303,79.273,3.30372389]
[1772277554685,3.59123402,79.302,79.273,3.30372389]
[1772277555783,3.59123402,79.3,79.275,3.30372389]
[1772277557780,3.59123402,79.298,79.275,3.30372389]
[1772277558961,3.59123402,79.298,79.277,3.30372389]
[1772277560668,3.59123402,79.298,79.279,3.30372389]
[1772277561993,3.59123402,79.305,79.28,6.36070199]
[1772277562171,3.59123402,79.304,79.281,3.30372389]
[1772277563676,3.59123402,79.302,79.281,3.30372389]
[1772277566890,3.59123402,79.3,79.281,3.30372389]
[1772277572302,3.59123402,79.298,79.281,3.30372389]
[1772277572596,3.59123402,79.298,79.277,3.30372389]
[1772277575009,3.59123402,79.296,79.277,3.30372389]
[1772277575702,3.59123402,79.296,79.279,3.30372389]
[1772277575998,12.61024019,79.301,79.279,3.30372389]
[1772277575999,3.59123402,79.3,79.279,3.30372389]
[1772277576300,3.59123402,79.3,79.281,3.30372389]
[1772277579203,3.59123402,79.3,79.282,3.30372389]
[1772277580885,3.5334525,79.311,79.282,3.30372389]
[1772277581393,3.5334525,79.311,79.284,3.27413497]
[1772277581705,3.5334525,79.307,79.284,3.27413497]
[1772277581996,4.12330578,79.306,79.284,3.27413497]
[1772277584400,4.12330578,79.306,79.286,3.44677245]
[1772277585022,16.02698586,79.319,79.291,3.44677245]
[1772277585308,3.41951869,79.318,79.291,3.44677245]
[1772277586411,3.41951869,79.318,79.293,3.44677245]
[1772277587111,3.41951869,79.326,79.293,3.44677245]
[1772277587410,4.05015929,79.322,79.301,3.44677245]
[1772277588522,3.41951869,79.32,79.301,12.61017891]
[1772277588689,3.41951869,79.32,79.302,3.44677245]
[1772277588891,3.41951869,79.32,79.301,12.61017891]
[1772277588892,0.6306406,79.322,79.301,3.44677245]
[1772277589391,4.05015929,79.322,79.301,3.44677245]
[1772277589791,4.05015929,79.322,79.295,3.44677245]
[1772277589995,3.41951869,79.319,79.29,3.44677245]
[1772277590197,12.60700192,79.321,79.285,16.05939999]
[1772277590198,3.41951869,79.309,79.285,16.05939999]
[1772277590394,3.41951869,79.309,79.286,3.44677245]
[1772277590602,3.41951869,79.307,79.286,3.44677245]
[1772277590910,3.41951869,79.307,79.285,12.61262754]
[1772277591604,3.41951869,79.307,79.286,3.44677245]
[1772277594314,3.41951869,79.307,79.285,12.61262754]
[1772277594315,3.41951869,79.299,79.274,3.44677245]
[1772277594688,3.41951869,79.299,79.269,16.06199966]
[1772277594911,3.41951869,79.289,79.253,3.44677245]
[1772277595088,3.41951869,79.289,79.255,3.44677245]
[1772277596118,3.41951869,79.288,79.257,3.44677245]
[1772277597215,3.41951869,79.288,79.258,64.94677245]
[1772277597404,3.41951869,79.288,79.258,3.44677245]
[1772277597603,3.41951869,79.288,79.257,3.44677245]
[1772277598700,3.41951869,79.286,79.258,12.61702288]
[1772277598912,3.41951869,79.286,79.258,16.06379533]
[1772277599110,3.41951869,79.286,79.259,3.44677245]
[1772277601332,3.41951869,79.286,79.258,12.61702288]
[1772277601333,6.35973462,79.28,79.255,16.06413779]
[1772277601622,3.41951869,79.279,79.245,3.44677245]
[1772277601798,3.41951869,79.269,79.245,3.44677245]
[1772277602704,12.61543119,79.268,79.245,3.44677245]
[1772277602914,3.41951869,79.267,79.245,3.44677245]
[1772277603800,3.41951869,79.265,79.245,3.44677245]
[1772277605601,3.41951869,79.278,79.247,3.44677245]
[1772277606219,3.41951869,79.304,79.271,3.44677245]
[1772277606400,3.41951869,79.303,79.271,3.44677245]
[1772277607522,0.74599999,79.315,79.281,3.44677245]
[1772277607722,0.74599999,79.315,79.291,3.44677245]
[1772277608399,0.74599999,79.315,79.29,6.35973462]
[1772277608400,0.74599999,79.315,79.293,3.44677245]
[1772277609502,0.74599999,79.315,79.295,3.44677245]
[1772277612425,0.6306406,79.322,79.301,3.31534584]
[1772277612934,0.6306406,79.322,79.31,9.67508046]
[1772277613233,0.6306406,79.322,79.31,3.31534584]
[1772277614626,1e-08,79.322,79.313,3.31534584]
[1772277616220,1e-08,79.322,79.315,3.31534584]
[1772277621420,1e-08,79.322,79.315,3.31534584]
[1772277622333,0.2,79.34,79.318,3.31534584]
[1772277622521,0.2,79.34,79.321,3.31534584]
[1772277623026,0.2,79.34,79.331,3.31534584]
[1772277623209,3.46225369,79.36,79.351,3.31534584]
[1772277623210,0.2,79.36,79.351,3.31534584]
[1772277623408,0.1,79.37,79.351,3.31534584]
[1772277623907,0.1,79.37,79.36,6.35973462]
[1772277624106,0.1,79.37,79.36,9.67508046]
[1772277624309,0.1,79.4,79.362,3.31534584]
[1772277624310,3.26225369,79.391,79.362,3.31534584]
[1772277624522,3.26225369,79.387,79.37,6.35973462]
[1772277624712,1e-08,79.38,79.37,6.35973462]
[1772277625008,1e-08,79.38,79.371,3.31534584]
[1772277625208,3.26225369,79.394,79.373,3.31534584]
[1772277625428,3.26225369,79.394,79.38,6.35973462]
[1772277625626,3.26225369,79.394,79.373,3.31534584]
[1772277626614,3.26225369,79.394,79.375,3.31534584]
[1772277626810,3.36225369,79.4,79.375,3.31534584]
[1772277627015,3.36225369,79.4,79.38,6.35973462]
[1772277627630,0.1,79.4,79.381,3.31534584]
[1772277627928,3.36225369,79.4,79.37,18.95894955]
[1772277628128,3.26225369,79.399,79.37,12.59921493]
[1772277628710,3.26225369,79.398,79.37,9.67508046]
[1772277629428,3.26225369,79.398,79.362,3.31534584]
[1772277629617,3.26225369,79.398,79.364,3.31534584]
[1772277630019,0.1,79.4,79.391,3.31534584]
[1772277630235,0.1,79.4,79.39,6.35973462]
[1772277630413,0.1,79.4,79.385,3.31534584]
[1772277630608,0.1,79.4,79.386,12.59655953]
[1772277631211,0.01538518,79.41,79.391,3.31534584]
[1772277631405,0.1,79.42,79.402,3.31534584]
[1772277631625,6.35973462,79.45,79.411,3.31534584]
[1772277631805,6.35973462,79.44,79.411,3.31534584]
[1772277632426,12.58700769,79.447,79.411,3.31534584]
[1772277632606,12.58700769,79.447,79.413,3.31534584]
[1772277632810,6.35973462,79.46,79.413,3.31534584]
[1772277633016,12.58510678,79.459,79.413,3.31534584]
[1772277633207,3.26225369,79.458,79.413,3.31534584]
[1772277634330,6.35973462,79.46,79.421,3.31534584]
[1772277634729,6.35973462,79.46,79.423,3.31534584]
[1772277635120,9.62198831,79.46,79.423,3.31534584]
[1772277635319,3.26225369,79.459,79.423,3.31534584]
[1772277635514,6.35973462,79.46,79.423,3.31534584]
[1772277635915,3.26225369,79.429,79.393,3.31534584]
[1772277636117,6.35973462,79.42,79.386,3.31534584]
[1772277636420,6.35973462,79.42,79.389,3.31534584]
[1772277636833,6.35973462,79.43,79.391,3.31534584]
[1772277637326,6.35973462,79.42,79.391,3.31534584]
[1772277637831,6.35973462,79.43,79.393,3.31534584]
[1772277638214,3.26225369,79.429,79.393,3.31534584]
[1772277638419,6.35973462,79.42,79.393,3.31534584]
[1772277638634,3.26225369,79.429,79.394,44.08393581]
[1772277638862,6.35973462,79.43,79.395,3.31534584]
[1772277639938,3.26225369,79.419,79.395,3.31534584]
[1772277640240,6.35973462,79.42,79.395,3.31534584]
[1772277640439,9.62198831,79.44,79.397,3.31534584]
[1772277640839,3.57780739,79.429,79.399,3.35105886]
[1772277641042,6.35973462,79.42,79.399,3.35105886]
[1772277641355,3.57780739,79.429,79.399,3.35105886]
[1772277641555,6.35973462,79.43,79.399,3.35105886]
[1772277642734,169.85973462,79.48,79.411,3.59234902]
[1772277642735,6.35973462,79.45,79.411,3.59234902]
[1772277643028,3.51293449,79.466,79.421,3.59234902]
[1772277643250,3.51293449,79.466,79.423,3.59234902]
[1772277643658,6.35973462,79.46,79.423,3.59234902]
[1772277644029,3.51293449,79.466,79.423,3.59234902]
[1772277645767,3.51293449,79.466,79.424,44.06728443]
[1772277645930,3.51293449,79.459,79.425,3.59234902]
[1772277646651,12.58351898,79.47,79.425,3.59234902]
[1772277646652,6.35973462,79.47,79.425,3.59234902]
[1772277647251,6.35973462,79.46,79.425,3.59234902]
[1772277647751,3.51293449,79.459,79.427,3.59234902]
[1772277648252,6.35973462,79.45,79.427,3.59234902]
[1772277648555,6.35973462,79.47,79.428,3.59234902]
[1772277648732,9.87266911,79.47,79.428,3.59234902]
[1772277648932,3.51293449,79.469,79.428,3.59234902]
[1772277649637,3.51293449,79.459,79.43,3.59234902]
[1772277649942,6.35973462,79.46,79.43,3.59234902]
[1772277652052,6.35973462,79.46,79.41,6.35973462]
[1772277652053,3.51293449,79.459,79.432,3.59234902]
[1772277653233,3.51293449,79.449,79.425,3.59234902]
[1772277653555,6.35973462,79.45,79.406,3.59234902]
[1772277653739,3.51293449,79.458,79.411,3.87667216]
[1772277654055,9.87266911,79.45,79.411,3.59234902]
[1772277654240,6.35973462,79.45,79.413,3.59234902]
[1772277654839,6.35973462,79.46,79.421,3.59234902]
[1772277655149,3.51293449,79.459,79.421,3.59234902]
[1772277657862,3.51293449,79.459,79.423,3.59234902]
[1772277659454,3.51293449,79.465,79.423,3.59234902]
[1772277659855,3.51293449,79.465,79.425,3.59234902]
[1772277660239,3.51293449,79.459,79.425,3.59234902]
[1772277660744,3.51293449,79.449,79.424,12.59065269]
[1772277661054,6.33083276,79.44,79.424,12.59065269]
[1772277661266,3.51293449,79.441,79.424,12.59065269]
[1772277662171,3.51293449,79.447,79.425,3.59234902]
[1772277662542,3.51293449,79.459,79.425,3.59234902]
[1772277663464,3.69383402,79.507,79.431,3.59234902]
[1772277663643,6.33083276,79.46,79.431,3.59234902]
[1772277663848,6.33083276,79.46,79.433,3.59234902]
[1772277664665,6.33083276,79.46,79.432,12.58938463]
[1772277665258,6.33083276,79.46,79.433,3.59234902]
[1772277665457,1.10614365,79.459,79.433,3.59234902]
[1772277666051,6.33083276,79.45,79.426,3.59234902]
[1772277666571,1.10863073,79.451,79.426,3.59234902]
[1772277667356,1.11108923,79.459,79.426,3.59234902]
[1772277668758,1.1135195,79.458,79.428,3.59234902]
[1772277669176,1.1135195,79.458,79.41,6.33083276]
[1772277669177,6.33083276,79.44,79.4,3.59234902]
[1772277669356,6.33083276,79.45,79.401,3.59234902]
[1772277669672,1.12097967,79.449,79.401,3.59234902]
[1772277669878,1.12097967,79.449,79.411,3.59234902]
[1772277670249,1.12835415,79.458,79.411,3.59234902]
[1772277670968,7.47368274,79.44,79.413,3.44071476]
[1772277672057,1.14997326,79.449,79.415,3.44071476]
[1772277672251,1.14997326,79.456,79.415,3.44071476]
[1772277672653,31.45508195,79.479,79.421,3.44071476]
[1772277672654,1.14997326,79.464,79.421,3.44071476]
[1772277673467,1.14997326,79.464,79.423,3.44071476]
[1772277674062,1.1639753,79.469,79.423,3.44071476]
[1772277675787,12.58368148,79.468,79.424,44.06728443]
[1772277675963,1.17765754,79.467,79.425,3.44071476]
[1772277676286,6.33083276,79.47,79.431,3.44071476]
[1772277676883,1.17765754,79.469,79.431,3.44071476]
[1772277678088,1.19102728,79.467,79.433,3.44071476]
[1772277678275,1.19102728,79.459,79.433,3.44071476]
[1772277678902,1.1975972,79.449,79.428,12.59000892]
[1772277679685,1.1975972,79.449,79.428,16.03072368]
[1772277681271,1.1975972,79.449,79.412,3.44071476]
[1772277681589,1.21051151,79.439,79.412,3.44071476]
[1772277683370,1.21051151,79.439,79.413,12.59239671]
[1772277683675,1.22313086,79.429,79.408,16.03375081]
[1772277683971,1.22933203,79.439,79.409,3.44071476]
[1772277684580,1.22933203,79.445,79.411,3.44071476]
[1772277684971,1.23546198,79.454,79.411,3.44071476]
[1772277685289,13.82061333,79.459,79.423,3.44071476]
[1772277685486,1.23546198,79.465,79.423,3.44071476]
[1772277685674,1.23546198,79.465,79.431,3.44071476]
[1772277687469,1.24751146,79.459,79.425,3.44071476]
[1772277688493,1.2534326,79.457,79.425,3.44071476]
[1772277688984,1.2534326,79.457,79.427,3.44071476]
[1772277689571,2.6,79.45,79.427,3.44071476]
[1772277690571,1.2534326,79.457,79.429,3.44071476]
[1772277691089,112.43581858,79.633,79.451,3.44071476]
[1772277691090,1.27079108,79.482,79.451,3.44071476]
[1772277691499,1.27079108,79.485,79.451,3.44071476]
[1772277691680,1.27079108,79.494,79.451,3.44071476]
[1772277691995,1.27644483,79.489,79.451,3.44071476]
[1772277692596,1.27644483,79.489,79.453,3.44071476]
[1772277693196,1.28203364,79.479,79.453,3.44071476]
[1772277693569,1.28203364,79.488,79.453,3.44071476]
[1772277693778,8.01482063,79.566,79.452,12.58621557]
[1772277693779,1.28755826,79.498,79.461,3.44071476]
[1772277694472,1.28755826,79.496,79.463,3.44071476]
[1772277694667,1.29301943,79.489,79.463,3.44071476]
[1772277695190,7.62385219,79.48,79.458,12.58525026]
[1772277695574,7.62385219,79.48,79.458,16.02596502]
[1772277696171,1.29841786,79.487,79.459,3.44071476]
[1772277696494,6.33083276,79.48,79.459,3.44071476]
[1772277697495,6.33083276,79.52,79.459,3.44071476]
[1772277697496,6.33083276,79.49,79.459,3.44071476]
[1772277698590,6.33083276,79.49,79.461,3.44071476]
[1772277698591,1.30902943,79.489,79.461,3.44071476]
[1772277698921,6.33083276,79.48,79.461,3.44071476]
[1772277699278,1.30902943,79.489,79.461,3.44071476]
[1772277699674,6.33083276,79.5,79.461,3.44071476]
[1772277700796,6.33083276,79.49,79.463,3.60911583]
[1772277701008,1.32953099,79.479,79.458,12.58521273]
[1772277701878,1.32953099,79.479,79.458,16.19432856]
[1772277702479,1.32953099,79.479,79.458,12.58521273]
[1772277702678,1.32953099,79.479,79.454,12.58589875]
[1772277702888,1.32953099,79.479,79.433,62.94578886]
[1772277702889,6.33083276,79.46,79.45,12.58645818]
[1772277703800,6.33083276,79.46,79.441,16.22443514]
[1772277703997,6.33083276,79.46,79.442,3.63647679]
[1772277704586,1.34429728,79.465,79.442,3.63647679]
[1772277705399,6.33083276,79.47,79.442,3.63647679]
[1772277705892,1.35386096,79.471,79.442,3.63647679]
[1772277706099,1.35856057,79.477,79.444,3.63647679]
[1772277707399,1.35856057,79.477,79.446,3.63647679]
[1772277707596,6.33083276,79.47,79.446,3.63647679]
[1772277707807,1.36779847,79.469,79.446,3.63647679]
[1772277708594,1.36779847,79.469,79.445,12.58732456]
[1772277709505,1.36779847,79.469,79.441,3.63647679]
[1772277710302,1.37682539,79.469,79.441,3.63647679]
[1772277710809,1.3,79.47,79.441,3.63647679]
[1772277711512,1.3,79.47,79.443,3.63647679]